Cogmind - Beta 10.2 @@@ ROGUE MODE // 2021.12.29 @ 15:18:12 Player: tangiers Result: Core destroyed Performance ------------- Evolutions (1) 500 Regions Visited (3) 600 Robots Destroyed (54) 270 Value Destroyed (1029) 1029 Prototype IDs (7) 140 Alien Tech Used (0) 0 Bonus (-28) -28 TOTAL SCORE: 2511 Bonus ------- Friendly Fire -28 Cogmind --------- Core Integrity 0/400 Matter 42/300 Energy 223/275 System Corruption 0% Temperature Cool (659) Movement Treading (220) Ox3 Location -9/Materials Parts ------- > --- POWER (1) -------- Deuterium Engine > --- PROPULSION (2) --- Light Treads Improved Treads > --- UTILITY (4) ------ Large Storage Unit High-capacity Storage Unit Improved Light Armor Plating Improved Light Armor Plating > --- WEAPON (2) ------- Flak Cannon Bore Cannon > --- INVENTORY (18) --- Improved Ion Engine Light Treads Light Treads Light Treads Medium Storage Unit High-capacity Matter Pod (200) Improved Signal Interpreter Improved Light Armor Plating Improved Light Armor Plating Light EM Pulse Cannon Light EM Pulse Cannon Light EM Pulse Cannon Light EM Pulse Cannon Improved Light Cannon Improved Light Cannon Rocket Launcher Mining Laser Peak State ------------ > --- POWER ------------ Deuterium Engine > --- PROPULSION ------- Advanced Treads Wheel > --- UTILITY ---------- Large Storage Unit High-capacity Storage Unit Improved Light Armor Plating Improved Light Armor Plating > --- WEAPON ----------- Flak Cannon Bore Cannon > --- INVENTORY -------- Light Ion Engine Light Treads Light Treads Light Treads Medium Storage Unit High-capacity Matter Pod Improved Light Armor Plating Improved Light Armor Plating Light EM Pulse Cannon Light EM Pulse Cannon Light EM Pulse Cannon Light EM Pulse Cannon Improved Light Cannon Improved Light Cannon Grenade Launcher Mining Laser Proton Bomb Trap Proton Bomb Trap [Rating: 26] Favorites ----------- Power Light Ion Engine Engine Light Ion Engine Propulsion Light Treads Treads Light Treads Leg Aluminum Leg Wheel Wheel Utility High-capacity Storage Unit Device Improved Terrain Scanner Storage High-capacity Storage Unit Protection Improved Light Armor Plating Weapon Improved Light Cannon Energy Gun EM Pulse Gun Ballistic Cannon Improved Light Cannon Launcher Grenade Launcher Special Weapon Mining Laser Build | -11 -10 -10 -9 ------- Run | Scr Mat Min Mat Slots Evolved 2 | . . . 2 Power . | . . . . Propulsion . | . . . . Utility 2 | . . . 2 Weapon . | . . . . Parts Attached 43 | 3 21 10 9 Power 3 | . 2 1 . Engine 3 | . 2 1 . Core . | . . . . Reactor . | . . . . Propulsion 20 | 2 8 4 6 Treads 12 | 1 4 2 5 Leg . | . . . . Wheel 8 | 1 4 2 1 Hover . | . . . . Flight . | . . . . Utility 7 | 1 3 . 3 Device 1 | 1 . . . Storage 4 | . 3 . 1 Processor . | . . . . Hackware . | . . . . Protection 2 | . . . 2 Artifact . | . . . . Weapon 13 | . 8 5 . Energy Gun . | . . . . Energy Cannon . | . . . . Ballistic Gun . | . . . . Ballistic Cannon 9 | . 5 4 . Launcher 1 | . 1 . . Special Weapon 3 | . 2 1 . Impact Weapon . | . . . . Slashing Weapon . | . . . . Piercing Weapon . | . . . . Special Melee Weapon . | . . . . Unidentified Prototypes . | . . . . Parts Lost . | . . . . Power . | . . . . Propulsion . | . . . . Utility . | . . . . Weapon . | . . . . Highest Loss Streak . | . . . . Average Slot Usage (%) 99 | . 99 100 99 Engine 13 | . 14 14 11 Treads 18 | . 16 19 18 Wheel 7 | . 11 8 3 Device 1 | . 7 . . Storage 25 | . 20 28 22 Protection 5 | . . . 21 Energy Gun 1 | . 8 . . Ballistic Cannon 14 | . 16 10 22 Launcher 5 | . . 9 . Special Weapon 4 | . 1 7 . Naked Turns . | . . . . Heaviest Build 78 | 12 51 64 78 Greatest Support 43 | 20 40 42 43 Greatest Overweight (x) 7 | 1 5 6 7 Average Overweight (x) 2 | . 2 1 3 Largest Inventory Capacity 18 | 6 16 16 18 Average Capacity 15 | 6 11 16 17 Most Carried 18 | 6 16 16 18 Average Carried 14 | 4 10 15 17 Final Capacity 18 | 6 16 16 18 Final Carried 17 | 5 15 16 17 Class Distribution -------------------- 100% | Mutant Dominant Class ---------------- Mutant | -10/Materials Mutant | -10/Mines Mutant | -9/Materials Resources | -11 -10 -10 -9 ----------- Run | Scr Mat Min Mat Matter Collected 1605 | 230 228 603 544 Remotely . | . . . . Salvage Created 1266 | 102 174 181 809 Parts 89 | 8 14 14 53 Haulers Intercepted 7 | . 1 . 6 Recyclers Shooed 1 | . . . 1 Parts Field Recycled . | . . . . Retrieved Matter . | . . . . Parts Self-Destructed . | . . . . Prevented . | . . . . Kills | -11 -10 -10 -9 ------- Run | Scr Mat Min Mat Combat Hostiles Destroyed 35 | . 9 6 20 Guns 1 | . 1 . . Cannons 30 | . 5 5 20 AOE 4 | . 3 1 . Classes Destroyed 10 | 2 3 2 3 Worker 3 | . . 2 1 Builder 2 | . . . 2 Tunneler 3 | 2 . 1 . Hauler 7 | . 1 . 6 Recycler 2 | 1 . 1 . Watcher 2 | . . . 2 Swarmer 16 | . 6 3 7 Grunt 12 | . 3 2 7 Sentry 6 | . . . 6 Demolisher 1 | . . 1 . Best Kill Streak 8 | 2 3 4 8 Combat Bots Only 8 | . 3 4 8 Max Kills in Single Turn 2 | 1 2 1 1 Gunslinging . | . . . . Exploded 2 | . 2 1 . Melee . | . . . . Uniques/NPCs Destroyed . | . . . . Combat | -11 -10 -10 -9 -------- Run | Scr Mat Min Mat Damage Taken 1795 | . 260 349 1186 Core 593 | . 67 107 419 Absorbed by Shields . | . . . . Core Remaining (%) 65 | 100 . 30 . Volleys Fired 131 | 5 37 19 70 Largest 2 | 2 2 2 2 Hottest 101 | 90 100 100 101 Shots Fired 224 | 10 71 32 111 Gun 38 | 10 28 . . Cannon 170 | . 35 24 111 Launcher 8 | . 5 3 . Special 8 | . 3 5 . Kinetic 170 | . 35 24 111 Thermal 27 | 5 17 5 . Explosive 8 | . 5 3 . Electromagnetic 19 | 5 14 . . Robot Hit Streak 11 | 6 11 5 9 Robot Miss Streak 12 | 1 4 3 12 Penetration Max 1 | . . . 1 Secondary Targets . | . . . . Shots Hit Robots 138 | 7 40 20 71 Core Hits 84 | 3 11 13 57 Critical Hits 19 | . . . 19 Critical Kills 10 | . . . 10 Critical Parts Destroyed 9 | . . . 9 Melee Attacks . | . . . . Impact . | . . . . Slashing . | . . . . Piercing . | . . . . Sneak Attacks . | . . . . Combat Hostiles . | . . . . Follow-up Attacks . | . . . . Damage Inflicted 3108 | 111 737 653 1607 Guns 331 | 111 220 . . Cannons 2100 | . 377 349 1374 Explosions 351 | . 136 215 . Melee . | . . . . Ramming 326 | . 4 89 233 Kinetic 2100 | . 377 349 1374 Thermal 183 | 51 132 . . Explosive 318 | . 103 215 . Electromagnetic 181 | 60 121 . . Impact . | . . . . Slashing . | . . . . Piercing . | . . . . Highest Corruption . | . . . . Average Corruption . | . . . . Corruption Purged . | . . . . Overload Shots . | . . . . Overflow Damage 58 | . 21 10 27 Projectiles 23 | . 13 10 . Explosions 8 | . 8 . . Melee 27 | . . . 27 Knockbacks 39 | . 7 8 24 Impact 3 | . . 1 2 Kinetic 35 | . 7 7 21 Secondary 1 | . . . 1 Self-Inflicted Damage 44 | . 29 15 . Shots 2 | . 1 1 . Rammed 27 | . 1 9 17 Targets Rammed 32 | . 1 12 19 Kicked . | . . . . Crushed 5 | . . 3 2 Highest Temperature 700 | 120 186 132 700 Average Temperature 82 | 53 43 45 116 Received Heat Transfer 333 | . 30 99 204 Effects 16 | . . . 16 Shutdowns 3 | . . . 3 Energy Bleed 5 | . . . 5 Short Circuit 1 | . . . 1 Damage (major) 2 | . . . 2 Damage (core) 5 | . . . 5 Siege Activations . | . . . . Robots Corrupted . | . . . . Combat Hostiles . | . . . . Parts Fried . | . . . . Impact Corruptions 1 | . . . 1 Robots Melted . | . . . . Combat Hostiles . | . . . . Parts Melted . | . . . . Heat Transferred 494 | 148 346 . . Parts Sabotaged . | . . . . Parts Stolen . | . . . . Parts Stripped . | . . . . Power Chain Reactions 1 | . 1 . . Missiles Intercepted . | . . . . Alert | -11 -10 -10 -9 ------- Run | Scr Mat Min Mat Peak Influence 326 | 15 198 141 326 Initial 76 | . 9 76 45 Average 42 | 10 41 30 72 Maximum Alert Level 1 | . . . 1 Low Security (%) 99 | 100 100 100 97 Level 1 . | . . . 2 Level 2 . | . . . . Level 3 . | . . . . Level 4 . | . . . . Level 5 . | . . . . High Security . | . . . . Max Security . | . . . . Squads Dispatched 5 | . 2 1 2 Investigation 4 | . 1 1 2 Extermination . | . . . . Reinforcement 1 | . 1 . . Assault . | . . . . Garrison . | . . . . Intercept . | . . . . Construction Impeded . | . . . . Haulers Reinforced . | . . . . Stealth | -11 -10 -10 -9 --------- Run | Scr Mat Min Mat Distress Signals 6 | . 1 . 5 Communications Jammed . | . . . . Distress Signals . | . . . . Times Spotted 75 | . 23 10 42 Peak Tracking Total 9 | . 4 4 9 Tactical Retreats 4 | . 3 1 . Traps | -11 -10 -10 -9 ------- Run | Scr Mat Min Mat Traps Triggered . | . . . . Indirectly . | . . . . Trap Hack Attempts . | . . . . Triggered . | . . . . Disarmed . | . . . . Reprogrammed . | . . . . Reused 1 | . . 1 . Traps Extracted . | . . . . Installed 5 | . . 3 2 Triggered 1 | . . 1 . Machines | -11 -10 -10 -9 ---------- Run | Scr Mat Min Mat Machines Disabled 2 | . . 1 1 Max in Single Turn 1 | . . 1 1 Machines Sabotaged . | . . . . Garrisons Compromised . | . . . . Overloaded Fab Kills . | . . . . Fab Network Shutdowns . | . . . . Hacking | -11 -10 -10 -9 --------- Run | Scr Mat Min Mat Machines Accessed 19 | . 7 1 11 Terminals 13 | . 6 . 7 Fabricators . | . . . . Repair Stations 1 | . . . 1 Recycling Units 3 | . 1 . 2 Scanalyzers 1 | . . . 1 Garrison Access . | . . . . Total Hacks 50 | . 20 1 29 Successful 25 | . 9 1 15 Failed 24 | . 10 . 14 Catastrophic 3 | . 3 . . Database Lockouts 1 | . 1 . . Manual 31 | . 14 . 17 Terminals 38 | . 17 . 21 Fabricators . | . . . . Repair Stations 2 | . . . 2 Recycling Units 8 | . 3 . 5 Scanalyzers 1 | . . . 1 Garrison Access . | . . . . Terminal Hacks 14 | . 5 1 8 Robot Analysis 3 | . 2 . 1 Prototype ID Bank 3 | . 1 . 2 Open Door 1 | . . 1 . Branch Access Points 1 | . 1 . . Unreport Threat 3 | . . . 3 Locate Traps 2 | . 1 . 1 Hauler Manifests 1 | . . . 1 Fabricator Hacks . | . . . . Repair Station Hacks 2 | . . . 2 Scan Component 1 | . . . 1 Repair 1 | . . . 1 Recycling Unit Hacks 1 | . 1 . . Retrieve Matter 1 | . 1 . . Scanalyzer 1 | . . . 1 Insert Component 1 | . . . 1 Garrison Access Hacks . | . . . . Unauthorized Hacks 7 | . 3 . 4 Terminals 4 | . 2 . 2 Track 3 | . 2 . 1 Operators 1 | . . . 1 Fabricators . | . . . . Repair Stations . | . . . . Recycling Units 3 | . 1 . 2 Recyclers 1 | . . . 1 Tunnel 2 | . 1 . 1 Scanalyzers . | . . . . Garrison Access . | . . . . Data Cores Recovered . | . . . . Used . | . . . . Hacking Detections 16 | . 7 . 9 Full Trace Events 1 | . . . 1 Feedback Events . | . . . . Feedback Blocked . | . . . . Robot Schematics Acquired . | . . . . Robots Built . | . . . . Matter . | . . . . Time . | . . . . Total Robot Build Rating . | . . . . Part Schematics Acquired . | . . . . Parts Built . | . . . . Matter . | . . . . Time . | . . . . Total Part Build Rating . | . . . . Parts Repaired . | . . . . Time 38 | . . . 38 Parts Recycled . | . . . . Recycled Matter . | . . . . Retrieved Matter 42 | . 42 . . Retrieved Components . | . . . . Parts Scanalyzed . | . . . . Part Schematics Acquired . | . . . . Parts Damaged . | . . . . Bothacking | -11 -10 -10 -9 ------------ Run | Scr Mat Min Mat Used RIF Installer . | . . . . Robots Hacked . | . . . . Non-combat . | . . . . Combat . | . . . . Robot Hacks Applied . | . . . . Relay Couplers Released . | . . . . Robots Rewired . | . . . . Allies Hacked . | . . . . Hacks Repelled . | . . . . Allies | -11 -10 -10 -9 -------- Run | Scr Mat Min Mat Total Allies . | . . . . Largest Group . | . . . . Highest-Rated Group . | . . . . Highest-Rated Ally . | . . . . Total Orders . | . . . . Ally Attacks . | . . . . Total Damage . | . . . . Kills . | . . . . Allies Corrupted . | . . . . Allies Melted . | . . . . Intel | -11 -10 -10 -9 ------- Run | Scr Mat Min Mat Robot Analysis Total 3 | . 2 . 1 Derelict Logs Recovered 1 | . . 1 . Drone Launches . | . . . . Drone Recoveries . | . . . . Exploration | -11 -10 -10 -9 ------------- Run | Scr Mat Min Mat Turns Passed 7580 | 73 1499 4206 1802 Spaces Moved 2549 | 27 620 1016 886 Core . | . . . . Treads 1506 | . 26 911 569 Legs 7 | 7 . . . Wheels 1036 | 20 594 105 317 Hover . | . . . . Flight . | . . . . Fastest Speed 80 | 90 80 120 140 Average Speed 154 | 97 113 172 165 Slowest Speed 220 | 120 200 180 220 Overloaded Moves . | . . . . Propulsion Burnouts . | . . . . Robots Hopped . | . . . . Cave-ins Triggered . | . . . . Exploration Rate (%) 63 | 2 83 99 70 Regions Visited 3 Branch Regions 1 Pre-discovered Areas 2 | . 1 . 1 Known Exits Taken 1 | . 1 . . Unknown Exits Taken 2 | 1 . 1 . Scrap Searched 1 | . . 1 . Spaces Dug 11 | . 3 5 3 Terrain Destroyed 107 | . 45 33 29 Melee . | . . . . Projectile 39 | . 3 7 29 AOE 68 | . 42 26 . Terrain Rammed . | . . . . Walls Destroyed . | . . . . Machines Disabled . | . . . . Actions | -11 -10 -10 -9 --------- Run | Scr Mat Min Mat Total 5930 | 63 1337 3424 1106 Wait 3099 | 26 621 2352 100 Move 2546 | 26 619 1015 886 Hop . | . . . . Pick Up 36 | 1 20 5 10 Fast Attach 5 | 1 2 . 2 Attach 4 | 2 1 . 1 Detach . | . . . . Swap 34 | . 18 10 6 Drop 38 | 2 18 8 10 Fire 131 | 5 37 19 70 Melee . | . . . . Ram . | . . . . Kick . | . . . . Crush 32 | . 1 12 19 Escape Stasis . | . . . . Rewire . | . . . . Trap 5 | . . 3 2 Miscellaneous . | . . . . Route ------- -11/Scrapyard -10/Materials (discovered 4 exits: *Mat x3 / *Min) -10/Mines (discovered 2 exits: *Mat x2) -9/Materials (discovered 2 exits: [*Mat] / [*Min]) History --------- Turn | Location | Event 14 | -11/Scrapyard | Discovered new exit (range 3) 74 | -11/Scrapyard | Entered Materials 305 | -10/Materials | Build established: Mutant 639 | -10/Materials | Discovered new exit (range 6) 753 | -10/Materials | Central database locked down 1089 | -10/Materials | Discovered new exit (range 13) 1320 | -10/Materials | Identified exit to Mines 1500 | -10/Materials | Discovered new exit (range 13) 1573 | -10/Materials | Entered Mines 1611 | -10/Mines | Assembled infested the area 1616 | -10/Mines | Assisted by a Guerilla fighting off Assembled 4058 | -10/Mines | Found a hidden stash of uninstalled traps 4952 | -10/Mines | Discovered new exit (range 5) 4963 | -10/Mines | Met a Derelict shopkeep closing up shop 4991 | -10/Mines | Core integrity fell below 50% 5122 | -10/Mines | Discovered new exit (range 12) 5128 | -10/Mines | Learned Materials terminal intel 5779 | -10/Mines | Entered Materials 5779 | -9/Materials | Evolved 2 slots: Utility x2 5780 | -9/Materials | Loaded intel: 12 terminal locations 6506 | -9/Materials | Discovered new exit (range 13) 7376 | -9/Materials | Discovered new exit (range 14) 7570 | -9/Materials | Core integrity fell below 50% 7574 | -9/Materials | Core integrity fell below 20% 7582 | -9/Materials | Core destroyed Last Messages --------------- 07567_ K-01 Serf collects debris. 07568_ G-34 Mercenary destroyed. 07569_ Power failure, Deuterium Engine shutdown. 07570_ Overheating: Core damaged (-56). 07571_ K-01 Serf collects debris. 07571_ HV Slug penetrates K-01 Serf. 07571_ K-01 Serf knocked back. 07573_ Overheating: Energy bleed (-53). 07574_ Overheating: Core damaged (-72). 07574_ K-01 Serf knocked back. 07577_ Imp. Treads permanently disabled. 07577_ Overheating: Short circuit. 07577_ HV Slug penetrates S-10 Pest. 07577_ S-10 Pest suffers critical hit. 07577_ S-10 Pest destroyed. 07580_ Overheating: Core damaged (-48). 07580_ Acquired 38 matter. 07581_ Power failure, Deuterium Engine shutdown. 07581_ Overheating: Energy bleed (-47). 07582_ Overheating: Core damaged (-44). Map ----- +----------------------------------------------------+ | # #????????????????# [[! #???? | | #+##???????????????# #???? | | ! #???????????????# ######+###+#???? | | "" #????????????##########??? ??????? | | Y" #??##+######## #???? ????? | | #??# #??# #??? | | ####??# w T #??# #??? | | k #??# #??? | | # ############ #??# #??? | | ????????????????## ##??# #??? | | ?????????????????# #################??? | | ?????????????????# + #????? | | ??????????????#### # """ #????? | | ?????????????##!! # """ #????? | | ?????????????#! # """ #????? | | ?????????????#! + #????? | | ?????????????#! # """ #????? | | ?????????????#! ^^^#### # """ ?#????? | | ?????????????##!! #??# # """ ??????? | | ??????????????#### #??# # ???????????? | | ?????????????????# #??# #*##??????????? | | ?????????????????# ####+;%;#??????????? | | ?????????????????# # !=[;#??????????? | | ?????????????????# # ""[%%#???????????? | | ?????????????????# # "R*%|#???????????? | | ?????????????????# # " @!*#???????????? | | ??????????????????? + *%===#???????????? | | ?????????????????# # %[%!%#???????????? | | ?????????????????# ?###;*###???????????? | | ????????????????# ????###;?????????????? | | ????????????????#????????? ?????????????? | | ?????????????????????????? ?????????????? | | ?????????????????????????? ?????????????? | | ??????????????????????????#?????????????? | | ????????????????????????????????????????? | | ????????????????????????????????????????? | | ????????????????????????????????????????? | | ????????????????????????????????????????? | | ????????????????????????????????????????? | | ????????????????????????????????????????? | | ????????????????????????????????????????? | | ????????????????????????????????????????? | | ????????????????????????????????????????? | | ????????????????????????????????????????? | | ????????????????????????????????????????? | | ????????????????????????????????????????? | | ?#######????????????????????????????????? | | #????????????????????????????????? | | #????????????????????????????????? | | #????????????????????????????????? | +----------------------------------------------------+ Best States ------------- Heat Dissipation 28 Energy Generation 14 Energy Capacity 275 Matter Stores 300 Matter Capacity 300 Sight Range 16 Terrain Scan Range 16 Terrain Scan Density 10 Armor Coverage 300 Evasion (%) 42 Recoil Reduction 2 Item Schematics ----------------- None Robot Schematics ------------------ None Fabricated ------------ Nothing Alien Tech Used ----------------- None Achievements -------------- None Challenges ------------ None Game ------ Seed SpreadProtonProtection Manual? 0 Play Time 00:41:18 Cumulative 308.3 hours Start 2021.12.29 @ 14:37:21 End 2021.12.29 @ 15:18:12 Sessions 1 Manual Loads 0 Difficulty Rogue Special Mode None Game No. 231 Rogue 231 Adventurer 0 Explorer 0 Win Type - Total 6 Types 5/0/1/0/0/0/0/0/0 Lore% 54 Gallery% 76 Achievement% 62 Wizard Run 0 Options --------- ASCII 0 Keyboard 0 Movement Numpad Keybinds 0 Fullscreen 2 Font 18/TerminusBold Map View 76x50 Tactical HUD 1 Map Filters NONE Filters NONE Steam 1 RUN: c946a47e-b7b0-41ef-865a-e4b090629d6a